fUSD/lending_fUSD_20260621
["ID","MTS","AMOUNT","RATE_DAILY","PERIOD"]
[425932497,1782037878000,-500.0,0.00028493,2]
[425932462,1782037878000,-500.0,0.00028493,2]
[425932466,1782037878000,-500.0,0.00028493,2]
[425932468,1782037878000,-500.0,0.00028493,2]
[425932475,1782037878000,-6740.75,0.00028493,2]
[425932471,1782037878000,-608.71,0.00028493,2]
[425932474,1782037878000,-853.67,0.00028493,2]
[425932473,1782037878000,-500.0,0.00028493,2]
[425932476,1782037878000,-606.08,0.00028493,2]
[425932477,1782037878000,-584.87,0.00028493,2]
[425932478,1782037878000,-4370.8,0.00028493,2]
[425932472,1782037878000,-500.0,0.00028493,2]
[425932479,1782037878000,-500.0,0.00028493,2]
[425932469,1782037878000,-500.0,0.00028493,2]
[425932480,1782037878000,-500.0,0.00028493,2]
[425932481,1782037878000,-500.0,0.00028493,2]
[425932487,1782037878000,-500.0,0.00028493,2]
[425932489,1782037878000,-500.0,0.00028493,2]
[425932488,1782037878000,-500.0,0.00028493,2]
[425932486,1782037878000,-500.0,0.00028493,2]
[425932492,1782037878000,-500.0,0.00028493,2]
[425932485,1782037878000,-736.37,0.00028493,2]
[425932482,1782037878000,-4952.69,0.00028493,2]
[425932483,1782037878000,-863.82,0.00028493,2]
[425932493,1782037878000,-500.0,0.00028493,2]
[425932484,1782037878000,-500.0,0.00028493,2]
[425932490,1782037878000,-500.0,0.00028493,2]
[425932548,1782037879000,-1115.01,0.00028493,2]
[425932554,1782037879000,-500.0,0.00028493,2]
[425932550,1782037879000,-500.0,0.00028493,2]
[425932551,1782037879000,-500.0,0.00028493,2]
[425932556,1782037879000,-523.3,0.00028493,2]
[425932552,1782037879000,-500.0,0.00028493,2]
[425932553,1782037879000,-4656.76,0.00028493,2]
[425932559,1782037879000,-1180.04,0.00028493,2]
[425932557,1782037879000,-500.0,0.00028493,2]
[425932558,1782037879000,-9528.18,0.00028493,2]
[425932561,1782037879000,-500.0,0.00028493,2]
[425932560,1782037879000,-7163.35,0.00028493,2]
[425932562,1782037879000,-1301.74,0.00028493,2]
[425932563,1782037879000,-500.0,0.00028493,2]
[425932565,1782037879000,-500.0,0.00028493,2]
[425932564,1782037879000,-3935.77,0.00028493,2]
[425932567,1782037879000,-1073.5,0.00028493,2]
[425932569,1782037879000,-1451.53,0.00028493,2]
[425932568,1782037879000,-500.0,0.00028493,2]
[425932570,1782037879000,-9999.22,0.00028493,2]
[425932547,1782037879000,-8253.82,0.00028493,2]
[425932555,1782037879000,-500.0,0.00028493,2]
[425932546,1782037879000,-10443.29,0.00028493,2]
[425932534,1782037879000,-560.49,0.00028493,2]
[425932545,1782037879000,-1501.04,0.00028493,2]
[425932523,1782037879000,-500.0,0.00028493,2]
[425932524,1782037879000,-500.0,0.00028493,2]
[425932525,1782037879000,-500.0,0.00028493,2]
[425932526,1782037879000,-6938.43,0.00028493,2]
[425932529,1782037879000,-746.08,0.00028493,2]
[425932528,1782037879000,-500.0,0.00028493,2]
[425932566,1782037879000,-922.78,0.00028493,2]
[425932527,1782037879000,-500.0,0.00028493,2]
[425932532,1782037879000,-186.97001582,0.00028493,2]
[425932530,1782037879000,-5735.18,0.00028493,2]
[425932542,1782037879000,-13019.17,0.00028493,2]
[425932533,1782037879000,-4885.48,0.00028493,2]
[425932535,1782037879000,-500.0,0.00028493,2]
[425932538,1782037879000,-7097.95,0.00028493,2]
[425932536,1782037879000,-8907.33,0.00028493,2]
[425932537,1782037879000,-500.0,0.00028493,2]
[425932539,1782037879000,-10103.93,0.00028493,2]
[425932540,1782037879000,-500.0,0.00028493,2]
[425932541,1782037879000,-662.83,0.00028493,2]
[425932543,1782037879000,-500.0,0.00028493,2]
[425932544,1782037879000,-500.0,0.00028493,2]
[425932549,1782037879000,-4071.99,0.00028493,2]
[425932531,1782037879000,-2630.75,0.00028493,2]
[425932572,1782037879000,-5836.17,0.00028493,2]
[425932613,1782037879000,-3382.74,0.00028493,2]
[425932571,1782037879000,-270.46056362,0.00028493,2]
[425932602,1782037879000,-8742.6,0.00028493,2]
[425932601,1782037879000,-500.0,0.00028493,2]
[425932605,1782037879000,-6319.14,0.00028493,2]
[425932599,1782037879000,-611.44,0.00028493,2]
[425932603,1782037879000,-500.0,0.00028493,2]
[425932604,1782037879000,-4906.25,0.00028493,2]
[425932608,1782037879000,-500.0,0.00028493,2]
[425932607,1782037879000,-521.32,0.00028493,2]
[425932611,1782037879000,-500.0,0.00028493,2]
[425932606,1782037879000,-831.38,0.00028493,2]
[425932609,1782037879000,-500.0,0.00028493,2]
[425932614,1782037879000,-500.0,0.00028493,2]
[425932615,1782037879000,-500.0,0.00028493,2]
[425932612,1782037879000,-500.0,0.00028493,2]
[425932616,1782037879000,-3846.12,0.00028493,2]
[425932618,1782037879000,-500.0,0.00028493,2]
[425932619,1782037879000,-151.0,0.00028493,7]
[425932621,1782037879000,-1221.43,0.00028493,2]
[425932620,1782037879000,-500.0,0.00028493,2]
[425932617,1782037879000,-151.0,0.00028493,7]
[425932573,1782037879000,-563.40087032,0.00028493,2]
[425932600,1782037879000,-500.0,0.00028493,2]
[425932595,1782037879000,-7069.12,0.00028493,2]
[425932610,1782037879000,-798.82,0.00028493,2]
[425932597,1782037879000,-500.0,0.00028493,2]
[425932598,1782037879000,-500.0,0.00028493,2]
[425932574,1782037879000,-500.0,0.00028493,2]
[425932575,1782037879000,-500.0,0.00028493,2]
[425932580,1782037879000,-1479.66,0.00028493,2]
[425932579,1782037879000,-391.01191,0.00028493,2]
[425932578,1782037879000,-500.0,0.00028493,2]
[425932581,1782037879000,-500.0,0.00028493,2]
[425932576,1782037879000,-500.0,0.00028493,2]
[425932582,1782037879000,-730.93,0.00028493,2]
[425932584,1782037879000,-500.0,0.00028493,2]
[425932583,1782037879000,-500.0,0.00028493,2]
[425932577,1782037879000,-4485.52,0.00028493,2]
[425932594,1782037879000,-656.66,0.00028493,2]
[425932586,1782037879000,-500.0,0.00028493,2]
[425932593,1782037879000,-9276.24,0.00028493,2]
[425932590,1782037879000,-5736.86,0.00028493,2]
[425932587,1782037879000,-500.0,0.00028493,2]
[425932589,1782037879000,-500.0,0.00028493,2]
[425932588,1782037879000,-869.85,0.00028493,2]
[425932591,1782037879000,-3337.66,0.00028493,2]
[425932592,1782037879000,-500.0,0.00028493,2]
[425932585,1782037879000,-500.0,0.00028493,2]
[425932596,1782037879000,-7741.98,0.00028493,2]
[425932659,1782037880000,-500.0,0.00028493,2]
[425932661,1782037880000,-500.0,0.00028493,2]
[425932650,1782037880000,-500.0,0.00028493,2]
[425932657,1782037880000,-6422.86,0.00028493,2]
[425932662,1782037880000,-613.09231104,0.00028493,2]
[425932663,1782037880000,-2112.512751,0.00028493,7]
[425932653,1782037880000,-500.0,0.00028493,2]
[425932656,1782037880000,-4989.66,0.00028493,2]
[425932660,1782037880000,-500.0,0.00028493,2]
[425932655,1782037880000,-500.0,0.00028493,2]
[425932654,1782037880000,-682.33,0.00028493,2]
[425932658,1782037880000,-531.49599608,0.00028493,2]
[425932665,1782037880000,-2112.512751,0.00028493,7]
[425932669,1782037880000,-2112.512751,0.00028493,7]
[425932675,1782037880000,-500.0,0.00028493,2]
[425932676,1782037880000,-3597.01,0.00028493,2]
[425932664,1782037880000,-4065.24,0.00028493,2]
[425932666,1782037880000,-500.0,0.00028493,2]
[425932668,1782037880000,-500.0,0.00028493,2]
[425932671,1782037880000,-500.0,0.00028493,2]
[425932673,1782037880000,-500.0,0.00028493,2]
[425932672,1782037880000,-1027.88,0.00028493,2]
[425932670,1782037880000,-2112.512751,0.00028493,7]
[425932674,1782037880000,-500.0,0.00028493,2]
[425932680,1782037880000,-500.0,0.00028493,2]
[425932649,1782037880000,-526.21,0.00028493,2]
[425932667,1782037880000,-500.0,0.00028493,2]
[425932647,1782037880000,-6815.25,0.00028493,2]
[425932626,1782037880000,-8696.2,0.00028493,2]
[425932644,1782037880000,-500.0,0.00028493,2]
[425932628,1782037880000,-500.0,0.00028493,2]
[425932622,1782037880000,-151.0,0.00028493,7]
[425932623,1782037880000,-6386.84,0.00028493,2]
[425932624,1782037880000,-500.0,0.00028493,2]
[425932677,1782037880000,-1155.12,0.00028493,2]
[425932627,1782037880000,-624.23,0.00028493,2]
[425932625,1782037880000,-500.0,0.00028493,2]
[425932631,1782037880000,-578.26,0.00028493,2]
[425932629,1782037880000,-4404.74,0.00028493,2]
[425932630,1782037880000,-4194.76,0.00028493,2]
[425932632,1782037880000,-10625.36,0.00028493,2]
[425932634,1782037880000,-287.82845488,0.00028493,2]
[425932651,1782037880000,-500.0,0.00028493,2]
[425932637,1782037880000,-650.62,0.00028493,2]
[425932633,1782037880000,-500.0,0.00028493,2]
[425932640,1782037880000,-500.0,0.00028493,2]
[425932638,1782037880000,-500.0,0.00028493,2]
[425932635,1782037880000,-500.0,0.00028493,2]
[425932639,1782037880000,-582.18,0.00028493,2]
[425932652,1782037880000,-4316.99,0.00028493,2]
[425932642,1782037880000,-500.0,0.00028493,2]
[425932645,1782037880000,-500.0,0.00028493,2]
[425932648,1782037880000,-8068.87,0.00028493,2]
[425932646,1782037880000,-500.0,0.00028493,2]
[425932643,1782037880000,-3267.69,0.00028493,2]
[425932641,1782037880000,-1025.47,0.00028493,2]
[425932636,1782037880000,-500.0,0.00028493,2]
[425932678,1782037880000,-500.0,0.00028493,2]
[425932679,1782037880000,-4764.69,0.00028493,2]
[425932733,1782037880000,-6020.43,0.00028766,2]
[425932714,1782037880000,-6081.0,0.00028625,2]
[425932713,1782037880000,-3560.0,0.00028625,2]
[425932723,1782037880000,-7986.83,0.00028766,2]
[425932721,1782037880000,-3324.04,0.00028766,2]
[425932715,1782037880000,-220.25420691,0.00028677,2]
[425932722,1782037880000,-4510.31,0.00028766,2]
[425932719,1782037880000,-3766.43,0.00028766,2]
[425932718,1782037880000,-2151.96,0.00028766,2]
[425932716,1782037880000,-644.98,0.00028766,2]
[425932720,1782037880000,-5328.39,0.00028766,2]
[425932725,1782037880000,-500.0,0.00028766,2]
[425932726,1782037880000,-500.0,0.00028766,2]
[425932710,1782037880000,-150.0,0.00028603,2]
[425932724,1782037880000,-698.7,0.00028766,2]
[425932729,1782037880000,-9938.39,0.00028766,2]
[425932728,1782037880000,-4096.63,0.00028766,2]
[425932727,1782037880000,-500.0,0.00028766,2]
[425932734,1782037880000,-500.0,0.00028766,2]
[425932730,1782037880000,-500.0,0.00028766,2]
[425932731,1782037880000,-4086.22,0.00028766,2]
[425932732,1782037880000,-8988.97,0.00028766,2]
[425932689,1782037880000,-500.0,0.00028493,2]
[425932736,1782037880000,-3922.95,0.00028766,2]
[425932738,1782037880000,-160.26828885,0.00028766,2]
[425932739,1782037880000,-941.47464104,0.00028767,15]
[425932737,1782037880000,-500.0,0.00028766,2]
[425932735,1782037880000,-516.95,0.00028766,2]
[425932711,1782037880000,-371.08,0.00028604,7]
[425932717,1782037880000,-376.42492237,0.00028766,2]
[425932707,1782037880000,-237.42,0.00028597,7]
[425932682,1782037880000,-500.0,0.00028493,2]
[425932685,1782037880000,-500.0,0.00028493,2]
[425932708,1782037880000,-944.07,0.000286,7]
[425932681,1782037880000,-4040.17,0.00028493,2]
[425932683,1782037880000,-500.0,0.00028493,2]
[425932686,1782037880000,-829.45,0.00028493,2]
[425932688,1782037880000,-1696.94,0.00028493,2]
[425932684,1782037880000,-832.36,0.00028493,2]
[425932691,1782037880000,-500.0,0.00028493,2]
[425932693,1782037880000,-500.0,0.00028493,2]
[425932702,1782037880000,-156.84738483,0.00028495,2]
[425932692,1782037880000,-500.0,0.00028493,2]
[425932690,1782037880000,-2636.35,0.00028493,2]
[425932701,1782037880000,-3061.09,0.00028493,2]
[425932687,1782037880000,-942.63,0.00028493,2]
[425932696,1782037880000,-508.83,0.00028493,2]
[425932694,1782037880000,-597.79,0.00028493,2]
[425932706,1782037880000,-187.46,0.00028595,7]
[425932709,1782037880000,-234.55,0.000286,7]
[425932704,1782037880000,-234.68082409,0.00028549,2]
[425932705,1782037880000,-187.4,0.00028592,7]
[425932703,1782037880000,-41644.49,0.000285,7]
[425932712,1782037880000,-407.47,0.00028607,7]
[425932700,1782037880000,-500.0,0.00028493,2]
[425932699,1782037880000,-2524.57,0.00028493,2]
[425932698,1782037880000,-500.0,0.00028493,2]
[425932695,1782037880000,-488.86962608,0.00028493,2]
[425932697,1782037880000,-4259.26,0.00028493,2]
[425932775,1782037881000,-500.0,0.00028767,2]
[425932761,1782037881000,-188.70572167,0.00028767,2]
[425932771,1782037881000,-500.0,0.00028767,2]
[425932770,1782037881000,-500.0,0.00028767,2]
[425932766,1782037881000,-500.0,0.00028767,2]
[425932769,1782037881000,-500.0,0.00028767,2]
[425932773,1782037881000,-529.47,0.00028767,2]
[425932783,1782037881000,-500.0,0.00028767,2]
[425932784,1782037881000,-500.0,0.00028767,2]
[425932774,1782037881000,-457.47628436,0.00028767,2]
[425932779,1782037881000,-500.0,0.00028767,2]
[425932781,1782037881000,-714.98,0.00028767,2]
[425932777,1782037881000,-500.0,0.00028767,2]
[425932776,1782037881000,-533.23,0.00028767,2]
[425932778,1782037881000,-180.47710061,0.00028767,2]
[425932782,1782037881000,-500.0,0.00028767,2]
[425932785,1782037881000,-500.0,0.00028767,2]
[425932790,1782037881000,-520.41,0.00028767,2]
[425932787,1782037881000,-1024.95,0.00028767,2]
[425932788,1782037881000,-500.0,0.00028767,2]
[425932789,1782037881000,-500.0,0.00028767,2]
[425932767,1782037881000,-500.0,0.00028767,2]
[425932780,1782037881000,-509.07,0.00028767,2]
[425932760,1782037881000,-500.0,0.00028767,2]
[425932793,1782037881000,-500.0,0.00028767,2]
[425932764,1782037881000,-554.72,0.00028767,2]
[425932740,1782037881000,-306392.29727965,0.00028767,2]
[425932741,1782037881000,-500.0,0.00028767,2]
[425932743,1782037881000,-500.0,0.00028767,2]
[425932745,1782037881000,-500.0,0.00028767,2]
[425932742,1782037881000,-773.81,0.00028767,2]
[425932747,1782037881000,-500.0,0.00028767,2]
[425932746,1782037881000,-500.0,0.00028767,2]
[425932744,1782037881000,-500.0,0.00028767,2]
[425932749,1782037881000,-500.0,0.00028767,2]
[425932748,1782037881000,-500.0,0.00028767,2]
[425932752,1782037881000,-500.0,0.00028767,2]
[425932750,1782037881000,-498.37669437,0.00028767,2]
[425932751,1782037881000,-500.0,0.00028767,2]
[425932755,1782037881000,-500.0,0.00028767,2]
[425932753,1782037881000,-500.0,0.00028767,2]
[425932754,1782037881000,-500.0,0.00028767,2]
[425932756,1782037881000,-500.0,0.00028767,2]
[425932757,1782037881000,-500.0,0.00028767,2]
[425932758,1782037881000,-500.0,0.00028767,2]
[425932759,1782037881000,-500.0,0.00028767,2]
[425932762,1782037881000,-500.0,0.00028767,2]
[425932765,1782037881000,-500.0,0.00028767,2]
[425932763,1782037881000,-500.0,0.00028767,2]
[425932768,1782037881000,-500.0,0.00028767,2]
[425932792,1782037881000,-722.68,0.00028767,2]
[425932772,1782037881000,-500.0,0.00028767,2]
[425932795,1782037881000,-500.0,0.00028767,2]
[425932825,1782037881000,-665.42,0.00028767,2]
[425932819,1782037881000,-500.0,0.00028767,2]
[425932824,1782037881000,-500.0,0.00028767,2]
[425932820,1782037881000,-672.23,0.00028767,2]
[425932821,1782037881000,-508.75,0.00028767,2]
[425932823,1782037881000,-500.0,0.00028767,2]
[425932830,1782037881000,-795.25,0.00028767,2]
[425932829,1782037881000,-613.31,0.00028767,2]
[425932827,1782037881000,-500.0,0.00028767,2]
[425932828,1782037881000,-500.0,0.00028767,2]
[425932832,1782037881000,-500.0,0.00028767,2]
[425932833,1782037881000,-500.0,0.00028767,2]
[425932831,1782037881000,-500.0,0.00028767,2]
[425932834,1782037881000,-500.0,0.00028767,2]
[425932836,1782037881000,-500.0,0.00028767,2]
[425932838,1782037881000,-500.0,0.00028767,2]
[425932837,1782037881000,-705.26,0.00028767,2]
[425932841,1782037881000,-500.0,0.00028767,2]
[425932835,1782037881000,-500.0,0.00028767,2]
[425932840,1782037881000,-500.0,0.00028767,2]
[425932839,1782037881000,-500.0,0.00028767,2]
[425932842,1782037881000,-500.0,0.00028767,2]
[425932794,1782037881000,-500.0,0.00028767,2]
[425932822,1782037881000,-512.6,0.00028767,2]
[425932815,1782037881000,-500.0,0.00028767,2]
[425932826,1782037881000,-1403.38,0.00028767,2]
[425932811,1782037881000,-500.0,0.00028767,2]
[425932791,1782037881000,-500.0,0.00028767,2]
[425932816,1782037881000,-500.0,0.00028767,2]
[425932786,1782037881000,-593.86,0.00028767,2]
[425932797,1782037881000,-500.0,0.00028767,2]
[425932796,1782037881000,-612.0,0.00028767,2]
[425932799,1782037881000,-500.0,0.00028767,2]
[425932798,1782037881000,-567.82,0.00028767,2]
[425932800,1782037881000,-500.0,0.00028767,2]
[425932802,1782037881000,-500.0,0.00028767,2]
[425932805,1782037881000,-500.0,0.00028767,2]
[425932803,1782037881000,-500.0,0.00028767,2]
[425932804,1782037881000,-500.0,0.00028767,2]
[425932801,1782037881000,-500.0,0.00028767,2]
[425932817,1782037881000,-500.0,0.00028767,2]
[425932807,1782037881000,-500.0,0.00028767,2]
[425932808,1782037881000,-500.0,0.00028767,2]
[425932843,1782037881000,-500.0,0.00028767,2]
[425932809,1782037881000,-500.0,0.00028767,2]
[425932810,1782037881000,-500.0,0.00028767,2]
[425932812,1782037881000,-500.0,0.00028767,2]
[425932814,1782037881000,-500.0,0.00028767,2]
[425932818,1782037881000,-671.4,0.00028767,2]
[425932806,1782037881000,-527.08,0.00028767,2]
[425932813,1782037881000,-500.0,0.00028767,2]
[425932875,1782037882000,-973.68,0.00028767,2]
[425932879,1782037882000,-500.0,0.00028767,2]
[425932884,1782037882000,-500.0,0.00028767,2]
[425932885,1782037882000,-500.0,0.00028767,2]
[425932870,1782037882000,-500.0,0.00028767,2]
[425932876,1782037882000,-500.0,0.00028767,2]
[425932869,1782037882000,-500.0,0.00028767,2]
[425932872,1782037882000,-500.0,0.00028767,2]
[425932883,1782037882000,-4661.92,0.00028767,2]
[425932877,1782037882000,-500.0,0.00028767,2]
[425932880,1782037882000,-582.10228966,0.00028767,2]
[425932894,1782037882000,-500.0,0.00028767,2]
[425932881,1782037882000,-500.0,0.00028767,2]
[425932886,1782037882000,-500.0,0.00028767,2]
[425932888,1782037882000,-500.0,0.00028767,2]
[425932892,1782037882000,-547.54,0.00028767,2]
[425932891,1782037882000,-741.11,0.00028767,2]
[425932887,1782037882000,-500.0,0.00028767,2]
[425932889,1782037882000,-540.67,0.00028767,2]
[425932890,1782037882000,-500.0,0.00028767,2]
[425932897,1782037882000,-500.0,0.00028767,2]
[425932896,1782037882000,-500.0,0.00028767,2]
[425932871,1782037882000,-500.0,0.00028767,2]
[425932882,1782037882000,-509.25,0.00028767,2]
[425932867,1782037882000,-500.0,0.00028767,2]
[425932847,1782037882000,-500.0,0.00028767,2]
[425932873,1782037882000,-683.19,0.00028767,2]
[425932844,1782037882000,-760.34,0.00028767,2]
[425932895,1782037882000,-865.71,0.00028767,2]
[425932845,1782037882000,-538.31,0.00028767,2]
[425932846,1782037882000,-501.12,0.00028767,2]
[425932849,1782037882000,-500.0,0.00028767,2]
[425932848,1782037882000,-500.0,0.00028767,2]
[425932850,1782037882000,-629.24,0.00028767,2]
[425932851,1782037882000,-500.0,0.00028767,2]
[425932852,1782037882000,-794.81,0.00028767,2]
[425932854,1782037882000,-500.0,0.00028767,2]
[425932855,1782037882000,-935.29,0.00028767,2]
[425932868,1782037882000,-500.0,0.00028767,2]
[425932857,1782037882000,-226.78468914,0.00028767,2]
[425932856,1782037882000,-1098.71,0.00028767,2]
[425932859,1782037882000,-500.0,0.00028767,2]
[425932860,1782037882000,-500.0,0.00028767,2]
[425932861,1782037882000,-500.0,0.00028767,2]
[425932858,1782037882000,-500.0,0.00028767,2]
[425932862,1782037882000,-500.0,0.00028767,2]
[425932863,1782037882000,-500.0,0.00028767,2]
[425932864,1782037882000,-571.62,0.00028767,2]
[425932866,1782037882000,-288.05464375,0.00028767,2]
[425932865,1782037882000,-500.0,0.00028767,2]
[425932874,1782037882000,-500.0,0.00028767,2]
[425932853,1782037882000,-248.60459234,0.00028767,2]
[425932893,1782037882000,-500.0,0.00028767,2]
[425932878,1782037882000,-529.79,0.00028767,2]
[425932898,1782037882000,-500.0,0.00028767,2]
[425932929,1782037882000,-421.84964275,0.00028767,2]
[425932932,1782037882000,-500.0,0.00028767,2]
[425932931,1782037882000,-986.57,0.00028767,2]
[425932930,1782037882000,-500.0,0.00028767,2]
[425932933,1782037882000,-500.0,0.00028767,2]
[425932940,1782037882000,-500.0,0.00028767,2]
[425932938,1782037882000,-500.0,0.00028767,2]
[425932934,1782037882000,-500.0,0.00028767,2]
[425932936,1782037882000,-500.0,0.00028767,2]
[425932935,1782037882000,-500.0,0.00028767,2]
[425932937,1782037882000,-500.0,0.00028767,2]
[425932928,1782037882000,-500.0,0.00028767,2]
[425932941,1782037882000,-151.0,0.00028767,7]
[425932945,1782037882000,-500.0,0.00028767,2]
[425932950,1782037882000,-500.0,0.00028767,2]
[425932944,1782037882000,-500.0,0.00028767,2]
[425932947,1782037882000,-500.0,0.00028767,2]
[425932943,1782037882000,-3968.18,0.00028767,2]
[425932946,1782037882000,-903.99,0.00028767,2]
[425932949,1782037882000,-500.0,0.00028767,2]
[425932948,1782037882000,-500.0,0.00028767,2]
[425932951,1782037882000,-500.0,0.00028767,2]
[425932952,1782037882000,-515.32,0.00028767,2]
[425932899,1782037882000,-500.0,0.00028767,2]
[425932942,1782037882000,-500.0,0.00028767,2]
[425932927,1782037882000,-500.0,0.00028767,2]
[425932939,1782037882000,-500.0,0.00028767,2]
[425932926,1782037882000,-610.84,0.00028767,2]
[425932900,1782037882000,-882.43,0.00028767,2]
[425932922,1782037882000,-500.0,0.00028767,2]
[425932902,1782037882000,-882.02,0.00028767,2]
[425932903,1782037882000,-500.0,0.00028767,2]
[425932906,1782037882000,-1005.32,0.00028767,2]
[425932907,1782037882000,-500.0,0.00028767,2]
[425932905,1782037882000,-660.08,0.00028767,2]
[425932904,1782037882000,-500.0,0.00028767,2]
[425932909,1782037882000,-500.0,0.00028767,2]
[425932908,1782037882000,-689.94,0.00028767,2]
[425932910,1782037882000,-500.0,0.00028767,2]
[425932911,1782037882000,-500.0,0.00028767,2]
[425932913,1782037882000,-526.4,0.00028767,2]
[425932901,1782037882000,-1112.44,0.00028767,2]
[425932912,1782037882000,-1075.1,0.00028767,2]
[425932915,1782037882000,-500.0,0.00028767,2]
[425932916,1782037882000,-500.0,0.00028767,2]
[425932918,1782037882000,-500.0,0.00028767,2]
[425932917,1782037882000,-500.0,0.00028767,2]
[425932919,1782037882000,-500.0,0.00028767,2]
[425932921,1782037882000,-500.0,0.00028767,2]
[425932920,1782037882000,-816.63,0.00028767,2]
[425932925,1782037882000,-500.0,0.00028767,2]
[425932924,1782037882000,-500.0,0.00028767,2]
[425932914,1782037882000,-4702.75,0.00028767,2]
[425932923,1782037882000,-500.0,0.00028767,2]
[425932964,1782037883000,-500.0,0.00028767,2]
[425932975,1782037883000,-172.91441035,0.00028767,2]
[425932976,1782037883000,-500.0,0.00028767,2]
[425932966,1782037883000,-933.57,0.00028767,2]
[425932972,1782037883000,-500.0,0.00028767,2]
[425932968,1782037883000,-500.0,0.00028767,2]
[425932967,1782037883000,-500.0,0.00028767,2]
[425932974,1782037883000,-500.0,0.00028767,2]
[425932969,1782037883000,-500.0,0.00028767,2]
[425932971,1782037883000,-500.0,0.00028767,2]
[425932973,1782037883000,-500.0,0.00028767,2]
[425932959,1782037883000,-500.0,0.00028767,2]
[425932960,1782037883000,-500.0,0.00028767,2]
[425932962,1782037883000,-563.13855028,0.00028767,2]
[425932961,1782037883000,-273.8603171,0.00028767,2]
[425932958,1782037883000,-500.0,0.00028767,2]
[425932956,1782037883000,-322.24125787,0.00028767,2]
[425932963,1782037883000,-500.0,0.00028767,2]
[425932957,1782037883000,-264.83997216,0.00028767,2]
[425932953,1782037883000,-500.0,0.00028767,2]
[425932954,1782037883000,-500.0,0.00028767,2]
[425932955,1782037883000,-500.0,0.00028767,2]
[425932970,1782037883000,-2926.49,0.00028767,2]
[425932965,1782037883000,-500.0,0.00028767,2]
[425932979,1782037883000,-500.0,0.00028767,2]
[425932982,1782037883000,-500.0,0.00028767,2]
[425932980,1782037883000,-500.0,0.00028767,2]
[425932977,1782037883000,-500.0,0.00028767,2]
[425933002,1782037883000,-500.0,0.00028767,2]
[425933003,1782037883000,-500.0,0.00028767,2]
[425933004,1782037883000,-30341.73452389,0.00028767,2]
[425932996,1782037883000,-500.0,0.00028767,2]
[425932999,1782037883000,-608.66,0.00028767,2]
[425932998,1782037883000,-500.0,0.00028767,2]
[425932997,1782037883000,-500.0,0.00028767,2]
[425932994,1782037883000,-500.0,0.00028767,2]
[425932995,1782037883000,-500.0,0.00028767,2]
[425933000,1782037883000,-500.0,0.00028767,2]
[425932993,1782037883000,-500.0,0.00028767,2]
[425933001,1782037883000,-500.0,0.00028767,2]
[425932991,1782037883000,-500.0,0.00028767,2]
[425932992,1782037883000,-1143.85,0.00028767,2]
[425932984,1782037883000,-500.0,0.00028767,2]